bitfinex-derivatives/quotes_ETHF0:USTF0_20251119
["timestamp","ask_amount","ask_price","bid_price","bid_amount"]
[1763518278059,0.52006,3117.1,3117.0,0.6662]
[1763518280151,3.72785,3117.2,3117.1,0.4014]
[1763518280356,0.52005,3117.2,3117.1,0.4014]
[1763518280546,3.21260792,3117.6,3117.5,0.6662]
[1763518281550,0.52478792,3117.6,3117.5,0.6662]
[1763518281954,0.00480792,3117.6,3117.5,0.6662]
[1763518282953,0.52478792,3117.6,3117.5,0.6662]
[1763518284460,0.00480792,3117.6,3117.5,0.6662]
[1763518284656,0.00480792,3117.6,3117.5,1.1862]
[1763518284863,3.72771,3118.0,3117.9,0.4395]
[1763518287558,3.2078,3118.0,3117.9,0.4395]
[1763518287970,0.0072292,3118.3,3118.2,0.96518]
[1763518295670,0.51983,3118.5,3118.4,0.4453]
[1763518295863,0.51983,3118.5,3118.4,3.6531]
[1763518296060,0.51983,3118.5,3118.4,4.17295]
[1763518296567,0.5198,3118.7,3118.6,0.96511]
[1763518296767,0.00333624,3118.7,3118.6,0.96511]
[1763518296971,3.2078,3119.3,3119.2,0.4453]
[1763518297369,3.7275,3119.3,3119.2,0.4453]
[1763518297575,0.5197,3119.3,3119.2,0.4453]
[1763518297775,0.51968,3119.4,3119.2,0.51971]
[1763518297970,0.51968,3119.4,3119.3,0.4453]
[1763518298563,0.4386,3119.7,3119.6,0.4453]
[1763518298771,3.4569,3120.5,3120.2,0.4453]
[1763518299078,0.4386,3120.3,3120.2,0.4453]
[1763518299670,0.4386,3120.5,3120.4,0.4453]
[1763518299869,0.4386,3120.5,3120.4,3.6531]
[1763518300070,0.95808,3120.6,3120.5,0.4453]
[1763518300374,0.4386,3120.6,3120.5,0.4453]
[1763518301476,0.4386,3121.0,3120.9,0.4453]
[1763518302076,4.16578,3121.3,3121.2,0.4453]
[1763518302275,0.4386,3121.1,3121.0,0.4453]
[1763518302670,0.4386,3120.9,3120.8,3.6531]
[1763518302866,0.51941,3121.0,3120.8,3.6531]
[1763518303072,3.2078,3121.3,3121.1,0.4453]
[1763518303073,0.95799,3121.2,3121.1,0.4453]
[1763518303273,0.4386,3121.2,3121.1,0.4453]
[1763518303473,3.2078,3121.3,3121.2,0.4453]
[1763518303785,0.51934,3121.5,3121.4,0.4453]
[1763518303970,0.51934,3121.5,3121.4,0.00402468]
[1763518303971,1.20704,3121.5,3121.4,0.00402468]
[1763518304677,0.95803,3120.9,3120.8,3.2078]
[1763518304975,0.95816,3120.1,3120.0,3.21260792]
[1763518305176,4.16596,3120.1,3120.0,0.00480792]
[1763518305381,4.16596,3120.1,3119.4,3.2078]
[1763518305382,1.08696,3119.5,3119.4,3.2078]
[1763518305678,1.09015577,3119.5,3119.4,3.21078733]
[1763518306573,1.09015577,3119.5,3119.4,0.00298733]
[1763518306574,4.29795577,3119.5,3119.4,0.00298733]
[1763518306876,0.51981,3118.6,3118.5,3.6531]
[1763518307072,0.95841,3118.6,3118.5,3.2078]
[1763518307678,0.95841,3118.6,3118.5,3.21154631]
[1763518308675,0.95841,3118.6,3118.5,0.00374631]
[1763518311280,0.51981,3118.6,3118.5,0.44904631]
[1763518312076,3.2078,3118.8,3118.5,0.44904631]
[1763518312077,3.72759,3118.8,3118.5,0.44904631]
[1763518312383,3.2078,3118.8,3118.5,0.70544631]
[1763518312883,0.5198,3118.7,3118.5,0.70544631]
[1763518313084,0.4386,3118.6,3118.5,0.00374631]
[1763518313984,0.9585,3118.1,3118.0,3.2078]
[1763518314489,0.51996,3117.8,3117.7,0.4453]
[1763518314877,0.51992,3118.0,3117.7,0.448211]
[1763518315082,0.00480792,3118.1,3117.7,0.448211]
[1763518315288,0.95854,3117.9,3117.8,0.4453]
[1763518315478,0.4386,3117.8,3117.7,0.002911]
[1763518315880,0.51994,3117.9,3117.7,0.448211]
[1763518316282,0.4386,3117.8,3117.7,0.448211]
[1763518317685,0.51994,3117.9,3117.7,0.448211]
[1763518317989,0.51993,3117.9,3117.8,0.4167]
[1763518318687,0.00480792,3118.1,3118.0,0.6534]
[1763518318985,0.41500792,3118.1,3118.0,3.2078]
[1763518319186,0.41500792,3118.1,3118.0,3.6245]
[1763518319385,0.00480792,3118.1,3118.0,3.8612]
[1763518319682,0.00480792,3118.1,3118.0,3.2078]
[1763518319683,0.41500792,3118.1,3118.0,3.2078]
[1763518320388,0.41500792,3118.1,3118.0,3.6245]
[1763518320789,0.41500792,3118.1,3118.0,3.2078]
[1763518321192,0.93490792,3118.1,3118.0,3.2078]
[1763518322992,0.93490792,3118.1,3118.0,3.6245]
[1763518323192,0.52470792,3118.1,3118.0,3.8612]
[1763518323894,0.52470792,3118.1,3118.0,3.6245]
[1763518324589,0.00480792,3118.1,3118.0,4.38111]
[1763518325491,3.72759,3118.8,3118.7,0.4167]
[1763518327793,3.72758,3118.8,3118.7,0.4167]
[1763518328687,3.72758,3118.8,3118.5,0.2367]
[1763518328688,0.4102,3118.6,3118.0,3.9644]
[1763518328890,0.51985,3118.4,3118.3,0.4167]
[1763518329292,0.51983,3118.5,3118.4,0.4167]
[1763518329490,0.51976,3119.0,3118.7,0.9365]
[1763518329695,0.00480792,3119.1,3119.0,0.4167]
[1763518329898,0.52453792,3119.1,3119.0,0.4167]
[1763518330099,0.92996,3118.9,3118.8,3.6245]
[1763518330498,0.51976,3118.9,3118.8,3.6245]
[1763518330694,0.00480792,3119.1,3119.0,0.4167]
[1763518330996,0.00480792,3119.1,3119.0,0.6534]
[1763518331499,0.92996,3118.9,3118.8,3.2078]
[1763518332292,0.51975,3119.0,3118.9,0.4167]
[1763518332492,0.92996,3118.9,3118.8,3.2078]
[1763518333200,0.92996,3118.9,3118.8,3.6245]
[1763518333398,0.51976,3118.9,3118.8,3.6245]
[1763518333696,0.92996,3118.9,3118.8,3.6245]
[1763518334200,0.52453792,3119.1,3119.0,0.4167]
[1763518334399,0.00480792,3119.1,3119.0,0.93645]
[1763518334599,0.00480792,3119.1,3119.0,1.17315]
[1763518335090,0.00319577,3119.5,3119.4,0.93638]
[1763518335886,0.51968,3119.4,3119.2,3.2078]
[1763518336199,0.4102,3119.1,3119.0,0.00480792]
[1763518336399,0.51971,3119.2,3119.0,0.42150792]
[1763518336600,0.4102,3119.1,3119.0,0.00480792]
[1763518338305,0.51971,3119.2,3119.1,0.4167]
[1763518338494,0.92991,3119.2,3119.0,0.00480792]
[1763518338796,0.4102,3119.1,3119.0,0.00480792]
[1763518340898,0.92989,3119.4,3119.3,0.4167]
[1763518341399,0.23859577,3119.5,3119.0,0.24150792]
[1763518341903,0.00319577,3119.5,3119.4,0.4167]
[1763518342101,0.15499577,3119.5,3119.0,0.60430792]
[1763518342308,0.51969,3119.4,3119.3,0.3796]
[1763518342603,0.52285577,3119.5,3119.4,0.3796]
[1763518343006,0.89665577,3119.5,3119.4,0.3796]
[1763518343397,0.5197,3119.3,3119.2,0.3796]
[1763518343599,0.89353,3119.1,3119.0,0.60430792]
[1763518343803,0.89353,3119.1,3119.0,0.38440792]
[1763518344199,0.3738,3119.1,3119.0,0.38440792]
[1763518344703,0.15499577,3119.5,3119.0,0.60430792]
[1763518344906,0.89665577,3119.5,3119.4,3.5874]
[1763518345106,0.52285577,3119.5,3119.4,3.5874]
[1763518345603,1.04845577,3119.5,3119.4,3.2078]
[1763518346603,0.89665577,3119.5,3119.4,3.5874]
[1763518347104,1.04845577,3119.5,3119.4,3.2078]
[1763518347794,0.89665577,3119.5,3119.4,3.2078]
[1763518348700,1.02435577,3119.5,3119.4,3.2078]
[1763518348900,0.88613,3119.1,3119.0,0.36900792]
[1763518349208,0.88613,3119.1,3119.0,0.00480792]
[1763518350803,0.88621,3118.6,3118.5,3.2078]
[1763518351015,0.88621,3118.6,3118.5,0.90712713]
[1763518351203,0.51992,3118.0,3117.7,0.002911]
[1763518351408,0.51992,3118.0,3117.9,3.2078]
[1763518351604,0.51987,3118.3,3117.9,3.572]
[1763518351915,0.51988,3118.2,3118.1,0.3642]
[1763518352410,0.51988,3118.2,3118.0,0.2262]
[1763518352912,0.51988,3118.2,3118.1,0.3642]
[1763518356009,1.72338801,3119.0,3118.9,0.3642]
[1763518356210,0.00319577,3119.5,3119.4,0.3642]
[1763518356411,0.00319577,3119.5,3119.4,3.572]
[1763518358413,0.51972,3119.2,3119.0,3.434]
[1763518360516,0.51972,3119.2,3119.0,0.2262]
[1763518360706,4.87895627,3119.2,3119.0,0.2262]
[1763518361511,0.51971,3119.2,3119.0,0.2262]
[1763518362312,0.5197,3119.3,3119.2,0.3642]
[1763518363724,0.51973,3119.1,3119.0,0.2262]
[1763518363911,0.51973,3119.1,3119.0,0.5904]
[1763518365832,0.51973,3119.1,3119.0,0.2262]
[1763518366818,0.00319577,3119.5,3119.4,0.3642]
[1763518367124,0.00319577,3119.5,3119.4,3.2078]
[1763518367316,0.52285577,3119.5,3119.4,3.2078]
[1763518368220,0.00319577,3119.5,3119.4,3.572]
[1763518369208,0.00319577,3119.5,3119.4,3.2078]
[1763518370625,6.00319577,3119.5,3119.4,3.2078]
[1763518370823,0.51968,3119.4,3119.2,3.2078]
[1763518371327,0.5197,3119.3,3119.2,3.2078]
[1763518371924,0.5197,3119.3,3119.2,0.3642]
[1763518372117,0.51973,3119.1,3119.0,0.5904]
[1763518372422,0.51973,3119.1,3119.0,0.2262]
[1763518373627,0.51981,3118.6,3118.5,0.2262]
[1763518376527,3.2078,3118.7,3118.5,0.5904]
[1763518376730,3.72753,3119.1,3119.0,0.2262]
[1763518377234,0.51981,3118.6,3118.5,0.2262]
[1763518377526,3.72761,3118.6,3118.5,0.2262]
[1763518380131,3.72761,3118.6,3118.0,3.434]
[1763518380132,0.5199,3118.1,3118.0,3.434]
[1763518380333,0.5199,3118.1,3118.0,3.8649]
[1763518381529,0.5199,3118.1,3118.0,3.434]
[1763518383827,0.5199,3118.1,3118.0,2.51468]
[1763518384028,0.5199,3118.1,3117.5,3.4445]
[1763518384029,0.51998,3117.6,3117.5,3.4445]
[1763518384827,0.51998,3117.6,3117.5,3.2078]
[1763518385132,3.72778,3117.6,3117.5,0.00244114]
[1763518386225,3.72778,3117.6,3117.5,0.25834114]
[1763518387036,3.72778,3117.6,3117.5,0.00244114]
[1763518387433,3.72778,3117.6,3117.5,0.25834114]
[1763518390535,3.72778,3117.6,3117.5,0.68924114]
[1763518390935,3.2078,3117.6,3117.5,0.68924114]
[1763518391532,3.2078,3117.6,3117.5,1.20924114]
[1763518391729,3.2078,3117.6,3117.5,0.68924114]
[1763518393336,3.2078,3117.6,3117.5,1.20924114]
[1763518393532,3.2078,3118.0,3117.9,0.4309]
[1763518393833,0.5197,3119.3,3119.2,0.4309]
[1763518394841,0.52285577,3119.5,3119.4,0.4309]
[1763518395138,0.00319577,3119.5,3119.4,0.4309]
[1763518403542,0.52285577,3119.5,3119.4,0.4309]
[1763518403840,0.51973,3119.1,3119.0,0.7657]
[1763518404930,0.00319577,3119.5,3119.4,0.5098]
[1763518405331,0.5197,3119.3,3119.0,0.2559]
[1763518405538,0.52285577,3119.5,3119.4,0.5098]
[1763518406337,0.51973,3119.1,3119.0,0.7657]
[1763518407829,0.51973,3119.1,3119.0,0.2559]
[1763518410035,0.51973,3119.1,3119.0,0.7707]
[1763518410235,0.51973,3119.1,3119.0,0.2559]
[1763518410632,0.51973,3119.1,3119.0,0.7707]
[1763518411240,0.51971,3119.2,3119.0,0.2559]
[1763518411437,0.51971,3119.2,3119.1,0.5148]
[1763518415642,0.51973,3119.1,3119.0,0.2559]
[1763518417640,0.51973,3119.1,3119.0,0.7707]
[1763518418049,3.2078,3119.4,3119.3,0.5148]
[1763518418248,0.51973,3119.1,3119.0,0.7707]
[1763518419446,0.51973,3119.1,3119.0,0.2559]
[1763518419749,0.51973,3119.1,3118.5,0.2559]
[1763518419750,0.51981,3118.6,3118.5,0.2559]
[1763518419948,3.72761,3118.6,3118.5,0.2559]
[1763518420148,3.72761,3118.6,3118.5,0.7707]
[1763518420446,0.00319577,3119.5,3118.5,0.7707]
[1763518420447,0.51979,3118.8,3118.7,0.5148]
[1763518420647,3.2078,3119.0,3118.9,0.5148]
[1763518421148,3.72756,3119.0,3118.9,0.5148]
[1763518421951,0.51981,3118.7,3118.6,0.5148]
[1763518423249,3.2078,3119.0,3118.7,0.5148]
[1763518423450,3.72755,3119.0,3118.9,0.5148]
[1763518425055,3.2078,3119.0,3118.9,0.5148]
[1763518425947,3.72755,3119.0,3118.9,0.5148]
[1763518427745,3.2078,3119.0,3118.9,0.5148]
[1763518428958,3.72755,3119.0,3118.9,0.5148]
[1763518429159,3.2078,3119.0,3118.9,0.5148]
[1763518429457,3.72755,3119.0,3118.9,0.5148]
[1763518430253,3.2078,3119.0,3118.9,0.5148]
[1763518430756,3.72755,3119.0,3118.9,0.5148]
[1763518430958,0.51981,3118.6,3118.5,0.2559]
[1763518431260,3.72755,3119.0,3118.9,0.5148]
[1763518431455,3.2078,3119.0,3118.9,0.5148]
[1763518432455,3.72755,3119.0,3118.9,0.5148]
[1763518433665,3.2078,3119.0,3118.9,0.5148]
[1763518434558,3.2078,3119.0,3118.9,1.03456]
[1763518434956,3.2078,3119.0,3118.9,0.5148]
[1763518435256,3.72755,3119.0,3118.9,0.5148]
[1763518435957,3.2078,3119.0,3118.9,0.5148]
[1763518436553,1.15143627,3119.1,3118.9,0.5148]
[1763518436752,0.51973,3119.1,3119.0,0.8238]
[1763518436954,3.72753,3119.1,3119.0,0.8238]
[1763518437149,4.87896627,3119.1,3119.0,0.8238]
[1763518437861,4.87896627,3119.1,3119.0,0.309]
[1763518439264,3.72753,3119.1,3119.0,0.309]
[1763518439760,0.51981,3118.6,3118.5,0.2559]
[1763518441460,0.51981,3118.6,3118.5,0.7211]
[1763518442464,3.72761,3118.6,3118.5,0.2559]
[1763518442865,0.51983,3118.5,3118.4,0.00480792]
[1763518444367,4.88202353,3118.6,3118.5,0.739]
[1763518444568,3.72761,3118.6,3118.5,0.739]
[1763518446067,1.15441353,3119.1,3119.0,0.4652]
[1763518446264,0.51971,3119.2,3119.1,0.4652]
[1763518449069,1.67412353,3119.2,3119.1,0.4652]
[1763518450075,1.67410353,3119.4,3119.2,0.4652]
[1763518450271,0.51969,3119.4,3119.3,0.4652]
[1763518452376,0.51972,3119.2,3119.1,0.4652]
[1763518457775,4.3654093,3119.5,3119.0,0.2738]
[1763518458080,3.73066577,3119.5,3119.4,0.4652]
[1763518459883,3.21099577,3119.5,3119.4,0.4652]
[1763518461182,3.21099577,3119.5,3119.4,0.98488]
[1763518461878,0.00480792,3119.6,3119.5,1.18036]
[1763518462382,7.92e-06,3119.6,3119.5,1.18036]
[1763518462676,0.51946,3120.7,3120.6,0.4079]
[1763518462880,0.52349735,3120.7,3120.6,0.41068805]
[1763518463277,0.00403735,3120.7,3120.6,0.41068805]
[1763518463481,3.735e-05,3120.7,3120.6,0.41068805]
[1763518463680,0.00480792,3121.0,3120.9,0.4079]
[1763518464784,0.00815803,3121.0,3120.9,0.4079]
[1763518468081,0.52756803,3121.0,3120.9,0.4079]
[1763518468283,0.51946,3120.7,3120.6,0.43378805]
[1763518470384,0.51946,3120.7,3120.6,0.00278805]
[1763518471076,0.51946,3120.7,3120.3,0.00480792]
[1763518471077,6.0,3120.7,3120.3,0.00480792]
[1763518471283,0.00815803,3121.0,3120.3,0.00480792]
[1763518471284,3.72731,3120.4,3120.3,0.00480792]
[1763518472380,3.72731,3120.4,3120.3,0.00817692]
[1763518473795,0.51951,3120.4,3120.3,0.00817692]
[1763518473987,0.51951,3120.4,3120.3,3.21597692]
[1763518474691,0.51951,3120.4,3120.3,3.64697692]
[1763518479589,3.21595803,3121.0,3120.5,0.6994]
[1763518479790,3.21595803,3121.0,3120.5,0.2684]
[1763518479791,0.51948,3120.6,3120.5,0.2684]
[1763518479990,0.51948,3120.6,3120.5,0.6994]
[1763518487408,0.00815803,3121.0,3120.9,0.431]
[1763518487594,0.52756803,3121.0,3120.9,0.431]
[1763518488305,0.51948,3120.6,3120.5,0.2684]
[1763518488604,0.51948,3120.6,3120.5,0.6994]
[1763518489205,0.00815803,3121.0,3120.8,0.431]
[1763518489504,0.00815803,3121.0,3120.9,0.431]
[1763518489704,0.00815803,3121.0,3120.5,0.2684]
[1763518490001,0.51948,3120.6,3120.5,0.2684]
[1763518493406,0.5195,3120.5,3120.4,3.2078]
[1763518496610,0.5195,3120.5,3120.4,3.6388]
[1763518496809,0.5195,3120.5,3120.4,3.2078]
[1763518498508,2.24288801,3120.5,3120.4,3.6388]
[1763518498899,2.24288801,3120.5,3120.4,3.2078]
[1763518499306,0.5195,3120.5,3120.4,3.2078]
[1763518501715,0.00335011,3121.0,3120.4,3.2078]
[1763518501909,9.02341198,3123.2,3122.7,1.73817318]
[1763518502110,9.02341198,3123.2,3123.1,3.2078]
[1763518502111,8.377,3123.2,3123.1,3.2078]
[1763518502312,8.008,3123.2,3123.1,3.2078]
[1763518502617,0.2314,3123.5,3123.1,3.72685]
[1763518502815,3.4392,3124.5,3123.7,0.51896]
[1763518503111,3.2078,3125.3,3124.0,1.6248184]
[1763518503314,3.2078,3125.3,3124.0,8.60391967]
[1763518503509,0.2314,3126.0,3125.1,1.1058984]
[1763518503510,0.6004,3126.0,3125.1,1.1058984]
[1763518503811,0.369,3125.7,3125.6,1.1058984]
[1763518504007,0.369,3125.7,3125.6,0.00261313]
[1763518504208,7.9984,3125.7,3125.6,0.00261313]
[1763518504408,0.23398035,3126.0,3125.6,0.00261313]
[1763518504612,8.3666,3125.7,3125.6,0.00261313]
[1763518505015,0.369,3125.3,3125.2,0.00479999]
[1763518505411,0.2314,3125.4,3125.2,0.00479999]
[1763518505915,7.9992,3125.3,3125.2,0.00807502]
[1763518506509,8.3682,3125.3,3125.2,0.00807502]
[1763518506817,8.8869,3125.3,3125.2,0.00807502]
[1763518507117,8.3682,3125.3,3125.2,0.00807502]
[1763518507509,0.369,3124.6,3124.2,3.2078]
[1763518507710,0.369,3124.3,3124.2,3.2078]
[1763518508112,0.2314,3124.2,3123.6,3.2078]
[1763518508317,5.0348,3124.2,3123.6,3.2078]
[1763518508513,0.23617358,3124.2,3123.6,3.21495681]
[1763518508717,5.1724,3123.7,3123.6,0.00715681]
[1763518508915,0.2314,3123.6,3123.2,3.2078]
[1763518509114,5.0348,3123.6,3123.2,3.2078]
[1763518509319,5.0348,3123.6,3122.8,3.2078]
[1763518509513,0.519,3123.5,3122.9,0.86854387]
[1763518509714,3.2078,3123.4,3122.8,3.2078]
[1763518510020,0.2314,3123.0,3122.8,3.21599678]
[1763518510416,0.8881,3122.9,3122.8,3.21599678]
[1763518510618,8.8993,3122.9,3122.8,0.00819678]
[1763518511128,16.7253,3122.9,3122.8,0.00819678]
[1763518512021,0.2314,3122.4,3122.0,3.2078]
[1763518512320,0.369,3121.6,3121.5,3.2078]
[1763518512521,6.944,3121.6,3121.5,3.2078]
[1763518512713,11.7474,3121.6,3121.5,3.2078]
[1763518513024,12.9984,3121.6,3121.5,3.21127754]
[1763518513421,5.1724,3121.6,3121.5,3.21127754]
[1763518513619,12.9984,3121.6,3121.5,0.00347754]
[1763518513917,12.9984,3121.6,3120.1,2.23354922]
[1763518513918,0.51944,3120.9,3120.6,3.2078]
[1763518514315,3.2078,3121.1,3120.6,3.2078]
[1763518514620,3.2078,3121.1,3119.7,2.56252296]
[1763518514621,0.2314,3121.2,3121.0,3.2078]
[1763518514824,0.00322202,3121.1,3121.0,3.2078]
[1763518515626,0.00322202,3121.1,3120.7,0.51946]
[1763518517127,0.00322202,3121.1,3120.8,0.51944]
[1763518519326,0.00322202,3121.1,3121.0,3.2078]
[1763518522626,0.37222202,3121.1,3121.0,3.2078]
[1763518522932,0.00322202,3121.1,3121.0,3.2078]
[1763518524633,0.5193,3121.7,3121.2,0.51937]
[1763518524833,0.558,3121.5,3121.0,3.2078]
[1763518525332,5.7688,3121.1,3121.0,3.2078]
[1763518525832,5.77155871,3121.1,3121.0,3.2078]
[1763518526832,0.00275871,3121.1,3121.0,3.2078]
[1763518527031,5.77155871,3121.1,3121.0,3.2078]
[1763518527433,6.29095871,3121.1,3121.0,3.2078]
[1763518528336,1.10162,3121.0,3120.6,3.21188489]
[1763518528529,5.90502,3121.0,3120.6,3.21188489]
[1763518528730,4.8034,3120.9,3120.6,3.73136489]
[1763518528931,5.90502,3121.0,3120.6,3.73136489]
[1763518530128,0.51943,3120.9,3120.6,3.21188489]
[1763518531335,1.45376,3120.7,3120.6,3.21188489]
[1763518531732,6.25716,3120.7,3120.6,3.21188489]
[1763518532232,0.5822,3121.0,3120.6,3.73136489]
[1763518532433,4.8034,3120.9,3120.6,3.73136489]
[1763518532629,0.51945,3120.8,3120.6,3.21188489]
[1763518532827,0.51946,3120.7,3120.6,3.21188489]
[1763518533336,0.5822,3121.0,3120.6,3.21188489]
[1763518533638,0.5822,3121.0,3120.9,0.51943]
[1763518533838,0.5822,3121.0,3120.7,0.51946]
[1763518534036,0.5822,3121.0,3120.6,3.21188489]
[1763518534238,0.51943,3120.9,3120.7,0.87108217]
[1763518534540,0.51943,3120.9,3120.8,0.87108217]
[1763518535839,1.45373,3120.9,3120.8,0.87108217]
[1763518536335,1.45373,3120.9,3120.8,2.00246049]
[1763518537140,1.45373,3120.9,3120.8,0.87108217]
[1763518537542,0.51943,3120.9,3120.8,0.87108217]
[1763518538239,0.5822,3121.0,3120.8,0.87108217]
[1763518538446,0.5822,3121.0,3119.6,4.0141241]
[1763518538743,0.5822,3121.0,3119.7,0.86112103]
[1763518538744,0.5196,3119.9,3119.7,0.86112103]
[1763518538933,3.2078,3120.0,3119.6,0.8854]
[1763518539141,3.2078,3120.0,3119.9,0.8854]
[1763518539537,3.2078,3120.0,3119.9,0.88931612]
[1763518540432,3.2078,3120.0,3119.9,2.03763409]
[1763518541843,3.2078,3120.0,3119.9,0.88931612]
[1763518545443,3.2078,3120.0,3119.9,1.40891612]
[1763518546545,3.2078,3120.0,3119.9,0.88931612]
[1763518546945,3.2078,3120.0,3119.9,1.40891612]
[1763518548743,3.72738,3120.0,3119.9,0.88931612]
[1763518549040,3.72738,3120.0,3119.9,1.40891612]
[1763518549541,3.2078,3120.0,3119.9,1.40891612]
[1763518551152,3.2078,3120.4,3120.0,0.5266]
[1763518551444,3.2078,3120.4,3120.3,1.40493]
[1763518551853,3.2078,3120.4,3120.3,2.26253776]
[1763518552147,3.2078,3120.4,3120.3,1.74300776]
[1763518552349,3.72731,3120.4,3120.3,0.8854]
[1763518552556,3.72731,3120.4,3120.3,1.40493]
[1763518552748,3.2078,3120.4,3120.3,1.40493]
[1763518553148,3.2078,3120.4,3120.3,2.26253776]
[1763518554156,0.00275871,3121.1,3121.0,1.40481]
[1763518554157,0.93705871,3121.1,3121.0,1.40481]
[1763518554652,0.00275871,3121.1,3121.0,2.78861534]
[1763518556056,0.00275871,3121.1,3121.0,1.93141]
[1763518557152,3.2078,3121.8,3121.7,0.5193]
[1763518557358,3.2078,3121.8,3121.7,1.4047]
[1763518557554,3.72702,3122.2,3121.9,0.51926]
[1763518558050,3.72702,3122.2,3121.6,0.85621765]
[1763518558252,0.51923,3122.1,3121.6,0.86102564]
[1763518558450,0.51923,3122.1,3121.7,0.51929]
[1763518559359,0.51923,3122.1,3121.8,0.51928]
[1763518559559,3.21577508,3122.2,3121.6,0.86102564]
[1763518559761,3.21577508,3122.2,3122.1,1.214]
[1763518559960,3.21577508,3122.2,3122.1,1.21639691]
[1763518560362,0.00797508,3122.2,3122.1,1.21639691]
[1763518560667,3.2078,3123.4,3123.0,0.7553]
[1763518560858,3.2078,3123.4,3123.3,1.214]
[1763518561255,3.2078,3123.9,3123.1,3.2078]
[1763518561454,3.2078,3123.9,3123.2,0.00480799]
[1763518561455,0.00476825,3123.8,3123.2,0.00480799]
[1763518561661,0.00476825,3123.8,3123.7,4.4218]
[1763518561954,1.20776825,3123.8,3123.4,0.85338814]
[1763518562158,0.00476825,3123.8,3123.7,4.4218]
[1763518563170,1.20776825,3123.8,3123.5,0.7553]
[1763518563360,0.51896,3123.7,3123.3,3.2078]
[1763518564266,0.51896,3123.7,3123.6,1.214]
[1763518564562,0.00476825,3123.8,3123.7,1.214]
[1763518564767,0.00476825,3123.8,3123.7,4.4218]
[1763518568565,0.5188,3124.7,3124.1,0.51889]
[1763518568757,3.2078,3124.9,3124.1,0.51889]
[1763518568952,3.2078,3124.9,3124.0,0.7553]
[1763518568953,0.51887,3124.3,3123.7,3.2078]
[1763518569263,3.9149,3124.5,3124.0,0.7553]
[1763518569463,0.00226449,3124.5,3124.4,4.4218]
[1763518569667,0.7169,3125.5,3124.8,0.51877]
[1763518569971,1.23549,3126.0,3125.2,1.214]
[1763518570163,0.7169,3126.5,3125.7,3.2078]
[1763518570672,0.72029317,3126.5,3125.8,0.51861]
[1763518570968,1.23880317,3126.5,3125.8,0.51861]
[1763518571164,0.00339317,3126.5,3125.7,3.2078]
[1763518571466,0.00339317,3126.5,3125.3,3.2078]
[1763518571467,1.203,3125.8,3125.3,3.2078]
[1763518571770,1.203,3125.8,3125.3,3.72649]
[1763518571970,3.92809317,3126.5,3125.7,3.2078]
[1763518572173,3.21119317,3126.5,3126.4,1.214]
[1763518572372,0.00339317,3126.5,3126.4,1.214]
[1763518572564,1.20639317,3126.5,3126.0,1.27388]
[1763518573065,3.2078,3126.4,3125.8,3.2078]
[1763518573366,0.72029317,3126.5,3125.8,3.2078]
[1763518573562,1.23880317,3126.5,3125.8,3.72641]
[1763518573760,1.23880317,3126.5,3125.8,3.2078]
[1763518573761,3.2078,3126.4,3125.8,3.2078]
[1763518574173,0.5186,3126.0,3125.8,3.2078]
[1763518574367,0.51864,3125.7,3125.5,0.7553]
[1763518574565,0.51863,3125.8,3125.4,3.2078]
[1763518574769,3.2078,3126.0,3125.5,0.7553]
[1763518575070,0.51861,3125.9,3125.8,1.214]
[1763518575671,0.51867,3125.5,3125.0,4.48185]
[1763518575863,0.51872,3125.2,3125.1,1.214]
[1763518576066,0.51872,3125.2,3124.9,1.214]
[1763518576264,0.51872,3125.2,3125.1,1.214]
[1763518576461,0.51876,3125.0,3124.6,3.2078]
[1763518576667,0.51876,3125.0,3124.9,1.214]
[1763518577075,3.9247,3125.5,3124.9,1.214]
[1763518577370,3.9247,3125.5,3124.6,3.2078]
[1763518577371,0.51872,3125.2,3125.1,1.214]
[1763518577876,3.2078,3125.5,3125.1,1.214]
[1763518578475,0.5187,3125.3,3125.1,1.214]
[1763518579881,3.2078,3125.9,3125.2,1.214]
[1763518580083,0.51868,3125.4,3125.2,1.214]
[1763518580268,3.2078,3125.4,3124.8,0.52358008]
[1763518580574,3.9247,3126.0,3125.5,0.7553]
[1763518580777,3.2078,3125.6,3125.0,0.7553]
[1763518580972,0.51871,3125.3,3125.0,0.51875]
[1763518581279,0.51873,3125.2,3125.0,0.7553]
[1763518581476,0.51873,3125.2,3125.0,1.27404]
[1763518581677,0.51873,3125.2,3124.9,3.2078]
[1763518581877,3.6332,3125.5,3124.8,0.52358008]
[1763518581878,0.51875,3125.0,3124.8,0.00480008]
[1763518582285,4.3071,3124.9,3124.8,0.00480008]
[1763518582969,10.3071,3124.9,3124.8,0.00480008]
[1763518583170,2.32123,3124.5,3124.0,3.2078]
[1763518583373,5.52903,3124.5,3124.0,3.2078]
[1763518584081,5.52903,3124.5,3124.1,0.00480008]
[1763518584782,1.61818,3124.2,3124.1,0.00480008]
[1763518585079,0.51887,3124.3,3124.1,1.16640008]
[1763518585378,1.0993,3124.2,3124.1,0.00480008]
[1763518585773,1.10250159,3124.2,3124.1,0.00743552]
[1763518586169,0.5188,3124.7,3124.6,1.1616]
[1763518586372,0.00477367,3124.8,3124.6,1.1616]
[1763518586672,0.00477367,3124.8,3124.7,1.1616]
[1763518586877,0.00317367,3124.8,3124.7,1.1616]
[1763518587388,0.0068788,3124.8,3124.7,1.1616]
[1763518589182,0.0068788,3124.8,3124.7,2.00377107]
[1763518589972,3.2078,3125.4,3125.3,1.5752]
[1763518590179,0.51863,3125.7,3125.6,1.0565]
[1763518590477,0.51863,3125.7,3125.6,1.57515]
[1763518590679,3.2078,3125.8,3125.6,1.57515]
[1763518591082,0.00394863,3125.8,3125.7,1.0565]
[1763518591786,1.07364863,3125.8,3125.6,0.51865]
[1763518592280,3.2078,3127.1,3126.7,1.0565]